[Event "Titled Tuesday Blitz May 9 Early 2023"]
[White "Tuleyeva-Aketayeva, Dana"]
[Black "Mouhamad, Joachim"]
[WhiteFideId "13701932"]
[BlackFideId "656410"]
[WhiteElo "2030"]
[BlackElo "2125"]
[Result "1-0"]
[Round "09"]
[TimeControl "180+2"]
[Date "2023.05.09"]
[WhiteClock "0:01:09"]
[BlackClock "0:01:29"]

1. d4 {[%clk 0:02:58]}  d5 {[%clk 0:02:54]} 2. Nf3 {[%clk 0:02:58]}  e6 {[%clk 0:02:54]} 3. g3 {[%clk 0:02:59]}  c5 {[%clk 0:02:33]} 4. Bg2 {[%clk 0:02:45]}  Nf6 {[%clk 0:02:24]} 5. O-O {[%clk 0:02:44]}  cxd4 {[%clk 0:02:21]} 6. Nxd4 {[%clk 0:02:41]}  Be7 {[%clk 0:02:22]} 7. c4 {[%clk 0:02:40]}  O-O {[%clk 0:02:21]} 8. cxd5 {[%clk 0:02:40]}  exd5 {[%clk 0:02:22]} 9. Nc3 {[%clk 0:02:39]}  Nc6 {[%clk 0:02:18]} 10. Bg5 {[%clk 0:02:37]}  Be6 {[%clk 0:02:16]} 11. Rc1 {[%clk 0:02:34]}  h6 {[%clk 0:02:13]} 12. Bf4 {[%clk 0:02:04]}  Qd7 {[%clk 0:02:02]} 13. e4 {[%clk 0:01:43]}  dxe4 {[%clk 0:01:58]} 14. Nxc6 {[%clk 0:01:32]}  Qxd1 {[%clk 0:01:52]} 15. Nxe7+ {[%clk 0:01:30]}  Kh8 {[%clk 0:01:51]} 16. Rfxd1 {[%clk 0:01:28]}  Rad8 {[%clk 0:01:47]} 17. Nxe4 {[%clk 0:01:20]}  Nxe4 {[%clk 0:01:38]} 18. Bxe4 {[%clk 0:01:20]}  Rxd1+ {[%clk 0:01:28]} 19. Rxd1 {[%clk 0:01:09]}  Bxa2 {[%clk 0:01:29]} 1-0


[Site "https://www.chess.com"]

[Event "Titled Tuesday Blitz May 9 Early 2023"]
[White "Spitzl, Vinzent"]
[Black "Umarov, Sabir"]
[WhiteFideId "12901253"]
[BlackFideId "14200538"]
[WhiteElo "2225"]
[BlackElo "2366"]
[Result "1-0"]
[Round "09"]
[TimeControl "180+2"]
[Date "2023.05.09"]
[WhiteClock "0:02:12"]
[BlackClock "0:00:14"]

1. e4 {[%clk 0:03:00]}  g6 {[%clk 0:02:58]} 2. d4 {[%clk 0:03:00]}  Bg7 {[%clk 0:02:58]} 3. Nc3 {[%clk 0:03:01]}  c6 {[%clk 0:02:58]} 4. h3 {[%clk 0:03:00]}  d5 {[%clk 0:02:58]} 5. Nf3 {[%clk 0:03:00]}  dxe4 {[%clk 0:02:46]} 6. Nxe4 {[%clk 0:03:01]}  Nf6 {[%clk 0:02:40]} 7. Nxf6+ {[%clk 0:03:00]}  Bxf6 {[%clk 0:02:41]} 8. Bc4 {[%clk 0:02:59]}  O-O {[%clk 0:02:35]} 9. O-O {[%clk 0:02:59]}  Nd7 {[%clk 0:02:31]} 10. Re1 {[%clk 0:02:56]}  Nb6 {[%clk 0:02:30]} 11. Bb3 {[%clk 0:02:56]}  Re8 {[%clk 0:02:25]} 12. c3 {[%clk 0:02:52]}  Nd5 {[%clk 0:02:24]} 13. Bh6 {[%clk 0:02:47]}  e6 {[%clk 0:02:18]} 14. Ne5 {[%clk 0:02:43]}  Qc7 {[%clk 0:02:06]} 15. Qe2 {[%clk 0:02:33]}  Bh8 {[%clk 0:01:59]} 16. Rad1 {[%clk 0:02:30]}  b6 {[%clk 0:01:56]} 17. c4 {[%clk 0:02:25]}  Ne7 {[%clk 0:01:47]} 18. Bf4 {[%clk 0:02:22]}  Qd8 {[%clk 0:01:23]} 19. d5 {[%clk 0:02:16]}  exd5 {[%clk 0:01:22]} 20. cxd5 {[%clk 0:02:16]}  cxd5 {[%clk 0:00:14]} 21. Nc6 {[%clk 0:02:12]} 1-0


[Site "https://www.chess.com"]

[Event "Titled Tuesday Blitz May 9 Early 2023"]
[White "ElenGajger"]
[Black "Matveeva, Olga"]
[BlackFideId "24107018"]
[WhiteElo "2463"]
[BlackElo "2009"]
[Result "1-0"]
[Round "09"]
[TimeControl "180+2"]
[Date "2023.05.09"]
[WhiteClock "0:00:47"]
[BlackClock "0:00:08"]

1. f3 {[%clk 0:02:58]}  d5 {[%clk 0:02:58]} 2. e4 {[%clk 0:02:57]}  e5 {[%clk 0:02:49]} 3. exd5 {[%clk 0:02:53]}  Qxd5 {[%clk 0:02:48]} 4. Nc3 {[%clk 0:02:53]}  Qa5 {[%clk 0:02:46]} 5. Bc4 {[%clk 0:02:51]}  Nf6 {[%clk 0:02:43]} 6. Nge2 {[%clk 0:02:50]}  Bc5 {[%clk 0:02:41]} 7. d4 {[%clk 0:02:45]}  exd4 {[%clk 0:02:39]} 8. Nxd4 {[%clk 0:02:45]}  O-O {[%clk 0:02:35]} 9. Nb3 {[%clk 0:02:38]}  Re8+ {[%clk 0:02:22]} 10. Be2 {[%clk 0:02:36]}  Qb6 {[%clk 0:01:54]} 11. Na4 {[%clk 0:02:32]}  Bb4+ {[%clk 0:01:48]} 12. c3 {[%clk 0:02:29]}  Qc6 {[%clk 0:01:45]} 13. Nd4 {[%clk 0:02:26]}  Qd6 {[%clk 0:01:25]} 14. cxb4 {[%clk 0:02:23]}  Qxb4+ {[%clk 0:01:25]} 15. Nc3 {[%clk 0:02:20]}  c5 {[%clk 0:01:24]} 16. Nc2 {[%clk 0:02:18]}  Qb6 {[%clk 0:01:20]} 17. O-O {[%clk 0:02:13]}  Bf5 {[%clk 0:01:17]} 18. Kh1 {[%clk 0:02:06]}  Nc6 {[%clk 0:01:15]} 19. Ne3 {[%clk 0:02:05]}  Bg6 {[%clk 0:01:12]} 20. Ned5 {[%clk 0:02:00]}  Nxd5 {[%clk 0:01:10]} 21. Nxd5 {[%clk 0:02:01]}  Qd8 {[%clk 0:01:08]} 22. Bb5 {[%clk 0:01:55]}  Re5 {[%clk 0:01:00]} 23. Bxc6 {[%clk 0:01:53]}  bxc6 {[%clk 0:00:59]} 24. Nc3 {[%clk 0:01:53]}  Qh4 {[%clk 0:00:58]} 25. Qd6 {[%clk 0:01:35]}  Rae8 {[%clk 0:00:53]} 26. Bd2 {[%clk 0:01:29]}  Rh5 {[%clk 0:00:41]} 27. Rae1 {[%clk 0:01:23]}  Rd8 {[%clk 0:00:39]} 28. Qc7 {[%clk 0:01:12]}  h6 {[%clk 0:00:37]} 29. Bf4 {[%clk 0:01:07]}  Bd3 {[%clk 0:00:20]} 30. Bg3 {[%clk 0:01:02]}  Qf6 {[%clk 0:00:18]} 31. Rd1 {[%clk 0:00:58]}  c4 {[%clk 0:00:18]} 32. Rfe1 {[%clk 0:00:55]}  Rf5 {[%clk 0:00:14]} 33. Ne4 {[%clk 0:00:49]}  Qe7 {[%clk 0:00:08]} 34. Qxe7 {[%clk 0:00:47]} 1-0


[Site "https://www.chess.com"]

[Event "Titled Tuesday Blitz May 9 Early 2023"]
[White "Panda Sambit"]
[Black "Brueckner, Thomas"]
[WhiteFideId "25091794"]
[BlackFideId "4600452"]
[WhiteElo "2272"]
[BlackElo "2322"]
[Result "1-0"]
[Round "09"]
[TimeControl "180+2"]
[Date "2023.05.09"]
[WhiteClock "0:01:23"]
[BlackClock "0:00:18"]

1. c4 {[%clk 0:02:55]}  Nf6 {[%clk 0:02:58]} 2. Nc3 {[%clk 0:02:56]}  g6 {[%clk 0:02:58]} 3. g3 {[%clk 0:02:55]}  Bg7 {[%clk 0:02:57]} 4. Bg2 {[%clk 0:02:55]}  O-O {[%clk 0:02:58]} 5. Nf3 {[%clk 0:02:56]}  d6 {[%clk 0:02:58]} 6. O-O {[%clk 0:02:56]}  Nc6 {[%clk 0:02:56]} 7. d4 {[%clk 0:02:56]}  e5 {[%clk 0:02:56]} 8. e4 {[%clk 0:02:57]}  Bg4 {[%clk 0:02:52]} 9. d5 {[%clk 0:02:56]}  Nd4 {[%clk 0:02:50]} 10. Be3 {[%clk 0:02:56]}  Bxf3 {[%clk 0:02:37]} 11. Bxf3 {[%clk 0:02:55]}  c5 {[%clk 0:02:37]} 12. dxc6 {[%clk 0:02:53]}  bxc6 {[%clk 0:02:37]} 13. Bxd4 {[%clk 0:02:51]}  exd4 {[%clk 0:02:36]} 14. Qxd4 {[%clk 0:02:52]}  Ng4 {[%clk 0:02:25]} 15. Qd2 {[%clk 0:02:51]}  Ne5 {[%clk 0:02:19]} 16. Be2 {[%clk 0:02:51]}  Qa5 {[%clk 0:02:08]} 17. f4 {[%clk 0:02:47]}  Nxc4 {[%clk 0:01:58]} 18. Bxc4 {[%clk 0:02:42]}  Qc5+ {[%clk 0:01:58]} 19. Kg2 {[%clk 0:02:28]}  Qxc4 {[%clk 0:01:58]} 20. Rfe1 {[%clk 0:02:27]}  Rad8 {[%clk 0:01:54]} 21. Rac1 {[%clk 0:02:26]}  Qb4 {[%clk 0:01:50]} 22. b3 {[%clk 0:02:22]}  Rfe8 {[%clk 0:01:46]} 23. Nb1 {[%clk 0:02:18]}  Qb6 {[%clk 0:01:31]} 24. Qc2 {[%clk 0:02:17]}  Rc8 {[%clk 0:01:26]} 25. Nd2 {[%clk 0:02:14]}  d5 {[%clk 0:01:22]} 26. e5 {[%clk 0:02:09]}  c5 {[%clk 0:01:18]} 27. Qd3 {[%clk 0:02:06]}  h5 {[%clk 0:01:04]} 28. Nf3 {[%clk 0:02:06]}  Qa5 {[%clk 0:00:46]} 29. Re2 {[%clk 0:02:01]}  c4 {[%clk 0:00:39]} 30. bxc4 {[%clk 0:02:00]}  dxc4 {[%clk 0:00:37]} 31. Rxc4 {[%clk 0:02:00]}  Qa6 {[%clk 0:00:25]} 32. Rxc8 {[%clk 0:01:46]}  Qxd3 {[%clk 0:00:24]} 33. Rxe8+ {[%clk 0:01:46]}  Kh7 {[%clk 0:00:25]} 34. Ng5+ {[%clk 0:01:47]}  Kh6 {[%clk 0:00:25]} 35. Nxf7+ {[%clk 0:01:48]}  Kh7 {[%clk 0:00:25]} 36. Ng5+ {[%clk 0:01:49]}  Kh6 {[%clk 0:00:25]} 37. Rf2 {[%clk 0:01:30]}  Qd5+ {[%clk 0:00:24]} 38. Kh3 {[%clk 0:01:23]}  Qd7+ {[%clk 0:00:24]} 39. Re6 {[%clk 0:01:24]}  Bf8 {[%clk 0:00:20]} 40. f5 {[%clk 0:01:23]}  Kxg5 {[%clk 0:00:18]} 41. Rxg6# {[%clk 0:01:23]} 1-0


[Site "https://www.chess.com"]

[Event "Titled Tuesday Blitz May 9 Early 2023"]
[White "Topalov, Aleksandar"]
[Black "Bueno, Alfeu Junior Varela"]
[WhiteFideId "925659"]
[BlackFideId "2108879"]
[WhiteElo "2151"]
[BlackElo "2175"]
[Result "0-1"]
[Round "09"]
[TimeControl "180+2"]
[Date "2023.05.09"]
[WhiteClock "0:00:19"]
[BlackClock "0:00:27"]

1. b3 {[%clk 0:03:00]}  e5 {[%clk 0:02:33]} 2. Bb2 {[%clk 0:03:00]}  Nc6 {[%clk 0:02:33]} 3. c4 {[%clk 0:02:59]}  f5 {[%clk 0:02:32]} 4. e3 {[%clk 0:02:59]}  Nf6 {[%clk 0:02:32]} 5. Nf3 {[%clk 0:02:59]}  e4 {[%clk 0:02:26]} 6. Nd4 {[%clk 0:02:56]}  Nxd4 {[%clk 0:02:24]} 7. Bxd4 {[%clk 0:02:56]}  Be7 {[%clk 0:02:16]} 8. Be2 {[%clk 0:02:53]}  O-O {[%clk 0:02:15]} 9. O-O {[%clk 0:02:53]}  b6 {[%clk 0:02:16]} 10. f4 {[%clk 0:02:51]}  Bb7 {[%clk 0:02:08]} 11. Kh1 {[%clk 0:02:51]}  Kh8 {[%clk 0:02:07]} 12. Rg1 {[%clk 0:02:51]}  c5 {[%clk 0:01:59]} 13. Bb2 {[%clk 0:02:49]}  d5 {[%clk 0:01:59]} 14. cxd5 {[%clk 0:02:48]}  Nxd5 {[%clk 0:02:00]} 15. g4 {[%clk 0:02:39]}  Bf6 {[%clk 0:01:58]} 16. Nc3 {[%clk 0:02:39]}  fxg4 {[%clk 0:01:35]} 17. Rxg4 {[%clk 0:02:36]}  Nb4 {[%clk 0:01:33]} 18. Na4 {[%clk 0:01:54]}  Nd3 {[%clk 0:01:29]} 19. Bxd3 {[%clk 0:01:48]}  exd3+ {[%clk 0:01:29]} 20. Kg1 {[%clk 0:01:42]}  Qd5 {[%clk 0:01:27]} 21. Kf2 {[%clk 0:01:38]}  Qh5 {[%clk 0:01:07]} 22. Kg3 {[%clk 0:01:07]}  Bc8 {[%clk 0:00:29]} 23. Bxf6 {[%clk 0:00:54]}  Rxf6 {[%clk 0:00:29]} 24. Nc3 {[%clk 0:00:23]}  Bxg4 {[%clk 0:00:27]} 25. Qxg4 {[%clk 0:00:19]}  Rg6 {[%clk 0:00:27]} 0-1


[Site "https://www.chess.com"]

[Event "Titled Tuesday Blitz May 9 Early 2023"]
[White "Levitan, Caleb Levi"]
[Black "Sargissyan, Sargis"]
[WhiteFideId "14332620"]
[BlackFideId "13303210"]
[WhiteElo "1963"]
[BlackElo "2109"]
[Result "1-0"]
[Round "09"]
[TimeControl "180+2"]
[Date "2023.05.09"]
[WhiteClock "0:00:30"]
[BlackClock "0:00:03"]

1. e4 {[%clk 0:02:55]}  c5 {[%clk 0:02:59]} 2. Nf3 {[%clk 0:02:54]}  d6 {[%clk 0:03:00]} 3. d4 {[%clk 0:02:54]}  cxd4 {[%clk 0:03:00]} 4. Qxd4 {[%clk 0:02:54]}  a6 {[%clk 0:02:58]} 5. c4 {[%clk 0:02:52]}  Nc6 {[%clk 0:02:59]} 6. Qe3 {[%clk 0:02:52]}  g6 {[%clk 0:02:58]} 7. Nc3 {[%clk 0:02:52]}  Bg7 {[%clk 0:02:59]} 8. b3 {[%clk 0:02:45]}  Nf6 {[%clk 0:02:51]} 9. Bb2 {[%clk 0:02:42]}  O-O {[%clk 0:02:47]} 10. Be2 {[%clk 0:02:42]}  b5 {[%clk 0:01:56]} 11. cxb5 {[%clk 0:02:25]}  axb5 {[%clk 0:01:55]} 12. Bxb5 {[%clk 0:02:20]}  Nb4 {[%clk 0:01:51]} 13. Qd2 {[%clk 0:02:07]}  Bb7 {[%clk 0:01:38]} 14. O-O {[%clk 0:02:04]}  Nxe4 {[%clk 0:00:49]} 15. Nxe4 {[%clk 0:01:56]}  Bxb2 {[%clk 0:00:49]} 16. Qxb2 {[%clk 0:01:53]}  Bxe4 {[%clk 0:00:49]} 17. Nd2 {[%clk 0:01:51]}  Bb7 {[%clk 0:00:46]} 18. a3 {[%clk 0:01:44]}  Qb6 {[%clk 0:00:46]} 19. Be2 {[%clk 0:01:27]}  Nd5 {[%clk 0:00:44]} 20. Nc4 {[%clk 0:01:23]}  Qc5 {[%clk 0:00:35]} 21. Bf3 {[%clk 0:01:13]}  Rfb8 {[%clk 0:00:33]} 22. Rac1 {[%clk 0:01:12]}  Qa7 {[%clk 0:00:28]} 23. Qd2 {[%clk 0:00:59]}  Nb6 {[%clk 0:00:28]} 24. Bxb7 {[%clk 0:00:54]}  Qxb7 {[%clk 0:00:26]} 25. Na5 {[%clk 0:00:38]}  Qd5 {[%clk 0:00:26]} 26. Qxd5 {[%clk 0:00:34]}  Nxd5 {[%clk 0:00:27]} 27. b4 {[%clk 0:00:31]}  Rb7 {[%clk 0:00:03]} 28. Nxb7 {[%clk 0:00:30]} 1-0


[Site "https://www.chess.com"]

[Event "Titled Tuesday Blitz May 9 Early 2023"]
[White "Mazurkiewicz, Michal"]
[Black "Feinig, Mario"]
[WhiteFideId "1124943"]
[BlackFideId "1618113"]
[WhiteElo "2054"]
[BlackElo "2163"]
[Result "1-0"]
[Round "09"]
[TimeControl "180+2"]
[Date "2023.05.09"]
[WhiteClock "0:00:09"]
[BlackClock "0:00:08"]

1. e4 {[%clk 0:03:00]}  c5 {[%clk 0:02:59]} 2. Nf3 {[%clk 0:02:59]}  Nc6 {[%clk 0:02:58]} 3. g3 {[%clk 0:02:58]}  d5 {[%clk 0:02:54]} 4. exd5 {[%clk 0:02:58]}  Qxd5 {[%clk 0:02:53]} 5. Nc3 {[%clk 0:02:58]}  Qe6+ {[%clk 0:02:53]} 6. Qe2 {[%clk 0:02:58]}  Qxe2+ {[%clk 0:02:49]} 7. Bxe2 {[%clk 0:02:59]}  e5 {[%clk 0:02:50]} 8. d3 {[%clk 0:02:55]}  f6 {[%clk 0:02:48]} 9. Nd5 {[%clk 0:02:50]}  Kd8 {[%clk 0:02:47]} 10. Nd2 {[%clk 0:02:42]}  Be6 {[%clk 0:02:44]} 11. Ne3 {[%clk 0:02:38]}  Nd4 {[%clk 0:02:37]} 12. Bd1 {[%clk 0:02:38]}  h5 {[%clk 0:02:33]} 13. c3 {[%clk 0:02:38]}  Nc6 {[%clk 0:02:34]} 14. h4 {[%clk 0:02:35]}  Bd6 {[%clk 0:02:21]} 15. Ne4 {[%clk 0:02:34]}  Kc7 {[%clk 0:02:19]} 16. Nxd6 {[%clk 0:02:33]}  Kxd6 {[%clk 0:02:20]} 17. Bf3 {[%clk 0:02:33]}  Rd8 {[%clk 0:02:17]} 18. a4 {[%clk 0:02:25]}  Kc7 {[%clk 0:02:14]} 19. a5 {[%clk 0:02:24]}  Rxd3 {[%clk 0:02:11]} 20. a6 {[%clk 0:02:12]}  b6 {[%clk 0:02:09]} 21. Be4 {[%clk 0:01:46]}  Rd7 {[%clk 0:02:07]} 22. Bd2 {[%clk 0:01:31]}  Nge7 {[%clk 0:02:05]} 23. b4 {[%clk 0:01:31]}  Rhd8 {[%clk 0:01:56]} 24. O-O-O {[%clk 0:01:08]}  cxb4 {[%clk 0:01:50]} 25. cxb4 {[%clk 0:01:09]}  Nd4 {[%clk 0:01:48]} 26. Kb2 {[%clk 0:01:06]}  Nd5 {[%clk 0:01:35]} 27. Nc4 {[%clk 0:00:48]}  Kb8 {[%clk 0:01:05]} 28. Rhe1 {[%clk 0:00:39]}  Nxb4 {[%clk 0:00:59]} 29. Nxb6 {[%clk 0:00:28]}  Rd6 {[%clk 0:00:49]} 30. Na4 {[%clk 0:00:11]}  Rxa6 {[%clk 0:00:11]} 31. Nc5 {[%clk 0:00:10]}  Ra2+ {[%clk 0:00:11]} 32. Kb1 {[%clk 0:00:09]}  Ra5 {[%clk 0:00:01]} 33. Bxb4 {[%clk 0:00:07]}  Rb5 {[%clk 0:00:02]} 34. Ka1 {[%clk 0:00:05]}  Rxb4 {[%clk 0:00:02]} 35. Na6+ {[%clk 0:00:05]}  Kc8 {[%clk 0:00:01]} 36. Nxb4 {[%clk 0:00:06]}  Kd7 {[%clk 0:00:01]} 37. Nc2 {[%clk 0:00:06]}  Ke7 {[%clk 0:00:02]} 38. Nxd4 {[%clk 0:00:06]}  Rc8 {[%clk 0:00:01]} 39. Nxe6 {[%clk 0:00:06]}  Kxe6 {[%clk 0:00:02]} 40. Bg2 {[%clk 0:00:05]}  Ke7 {[%clk 0:00:03]} 41. Rc1 {[%clk 0:00:05]}  Rc5 {[%clk 0:00:04]} 42. Rxc5 {[%clk 0:00:05]}  a6 {[%clk 0:00:05]} 43. Rc7+ {[%clk 0:00:05]}  Ke6 {[%clk 0:00:05]} 44. Bh3+ {[%clk 0:00:06]}  Kd6 {[%clk 0:00:05]} 45. Rd7+ {[%clk 0:00:06]}  Kc5 {[%clk 0:00:06]} 46. Rc1+ {[%clk 0:00:07]}  Kb4 {[%clk 0:00:06]} 47. Rb7+ {[%clk 0:00:08]}  Ka5 {[%clk 0:00:07]} 48. Rc2 {[%clk 0:00:08]}  Ka4 {[%clk 0:00:08]} 49. Ra2# {[%clk 0:00:09]} 1-0


[Site "https://www.chess.com"]

[Event "Titled Tuesday Blitz May 9 Early 2023"]
[White "Ramirez, Maria Eugenia"]
[Black "Luberanski, Jakub"]
[WhiteFideId "3301680"]
[BlackFideId "21830509"]
[WhiteElo "1842"]
[BlackElo "2255"]
[Result "0-1"]
[Round "09"]
[TimeControl "180+2"]
[Date "2023.05.09"]
[WhiteClock "0:00:01"]
[BlackClock "0:00:20"]

1. e4 {[%clk 0:03:00]}  e5 {[%clk 0:02:58]} 2. Nf3 {[%clk 0:03:00]}  Nc6 {[%clk 0:02:59]} 3. Nc3 {[%clk 0:03:00]}  Nf6 {[%clk 0:02:56]} 4. Bb5 {[%clk 0:03:00]}  a6 {[%clk 0:02:49]} 5. Bxc6 {[%clk 0:02:59]}  dxc6 {[%clk 0:02:50]} 6. O-O {[%clk 0:02:58]}  Bg4 {[%clk 0:02:43]} 7. d3 {[%clk 0:02:54]}  Bc5 {[%clk 0:02:41]} 8. Be3 {[%clk 0:02:52]}  Bd6 {[%clk 0:02:31]} 9. h3 {[%clk 0:02:47]}  Bh5 {[%clk 0:02:31]} 10. d4 {[%clk 0:02:44]}  exd4 {[%clk 0:02:19]} 11. Bxd4 {[%clk 0:02:44]}  c5 {[%clk 0:02:04]} 12. Be3 {[%clk 0:02:29]}  O-O {[%clk 0:01:42]} 13. g4 {[%clk 0:02:05]}  Nxg4 {[%clk 0:01:29]} 14. hxg4 {[%clk 0:02:05]}  Bxg4 {[%clk 0:01:29]} 15. e5 {[%clk 0:02:03]}  Qd7 {[%clk 0:00:56]} 16. exd6 {[%clk 0:01:55]}  Qf5 {[%clk 0:00:52]} 17. Qd5 {[%clk 0:01:43]}  Qg6 {[%clk 0:00:42]} 18. Qg5 {[%clk 0:01:37]}  Bxf3 {[%clk 0:00:40]} 19. Qxg6 {[%clk 0:01:37]}  fxg6 {[%clk 0:00:37]} 20. dxc7 {[%clk 0:01:34]}  Rac8 {[%clk 0:00:31]} 21. Bxc5 {[%clk 0:01:26]}  Rf5 {[%clk 0:00:31]} 22. Bd6 {[%clk 0:01:18]}  Rh5 {[%clk 0:00:30]} 23. Bh2 {[%clk 0:01:14]}  Rxc7 {[%clk 0:00:27]} 24. Rfe1 {[%clk 0:00:53]}  Rc4 {[%clk 0:00:25]} 25. Ne2 {[%clk 0:00:24]}  Rch4 {[%clk 0:00:20]} 26. Ng3 {[%clk 0:00:10]}  Rxh2 {[%clk 0:00:20]} 27. Re8+ {[%clk 0:00:08]}  Kf7 {[%clk 0:00:20]} 28. Re3 {[%clk 0:00:02]}  Rh1+ {[%clk 0:00:19]} 29. Nxh1 {[%clk 0:00:01]}  Rxh1# {[%clk 0:00:20]} 0-1


[Site "https://www.chess.com"]

[Event "Titled Tuesday Blitz May 9 Early 2023"]
[White "Dahlgren, James Allen"]
[Black "Iskusnyh, Sergei"]
[WhiteFideId "22256873"]
[BlackFideId "4120027"]
[WhiteElo "2213"]
[BlackElo "2492"]
[Result "0-1"]
[Round "09"]
[TimeControl "180+2"]
[Date "2023.05.09"]
[WhiteClock "0:00:45"]
[BlackClock "0:00:41"]

1. d3 {[%clk 0:03:00]}  d5 {[%clk 0:02:57]} 2. f4 {[%clk 0:03:01]}  g6 {[%clk 0:02:56]} 3. Nf3 {[%clk 0:03:02]}  Bg7 {[%clk 0:02:56]} 4. g3 {[%clk 0:03:02]}  c6 {[%clk 0:02:53]} 5. Bg2 {[%clk 0:03:03]}  Nh6 {[%clk 0:02:49]} 6. O-O {[%clk 0:03:04]}  Qb6+ {[%clk 0:02:48]} 7. Kh1 {[%clk 0:02:57]}  Bxb2 {[%clk 0:02:47]} 8. Bxb2 {[%clk 0:02:56]}  Qxb2 {[%clk 0:02:47]} 9. Nbd2 {[%clk 0:02:57]}  Nf5 {[%clk 0:02:41]} 10. Qc1 {[%clk 0:02:44]}  Qxc1 {[%clk 0:02:39]} 11. Raxc1 {[%clk 0:02:45]}  Ne3 {[%clk 0:02:39]} 12. Rfe1 {[%clk 0:02:43]}  O-O {[%clk 0:02:32]} 13. Nf1 {[%clk 0:02:43]}  Nxg2 {[%clk 0:02:29]} 14. Kxg2 {[%clk 0:02:43]}  Nd7 {[%clk 0:02:20]} 15. e4 {[%clk 0:02:43]}  dxe4 {[%clk 0:02:17]} 16. dxe4 {[%clk 0:02:43]}  Nc5 {[%clk 0:02:17]} 17. N1d2 {[%clk 0:02:37]}  Rd8 {[%clk 0:02:09]} 18. Nb3 {[%clk 0:02:33]}  Na4 {[%clk 0:02:08]} 19. c4 {[%clk 0:02:19]}  b6 {[%clk 0:01:59]} 20. Kf2 {[%clk 0:02:11]}  c5 {[%clk 0:01:50]} 21. Ke3 {[%clk 0:02:10]}  Ba6 {[%clk 0:01:41]} 22. Ne5 {[%clk 0:01:55]}  Rd6 {[%clk 0:01:29]} 23. Red1 {[%clk 0:01:45]}  Rad8 {[%clk 0:01:27]} 24. Rxd6 {[%clk 0:01:44]}  Rxd6 {[%clk 0:01:22]} 25. Rc2 {[%clk 0:01:39]}  f6 {[%clk 0:01:15]} 26. Ng4 {[%clk 0:01:34]}  Rd1 {[%clk 0:00:56]} 27. e5 {[%clk 0:01:33]}  Kf7 {[%clk 0:00:53]} 28. h4 {[%clk 0:01:04]}  Bc8 {[%clk 0:00:47]} 29. Nf2 {[%clk 0:01:02]}  Rg1 {[%clk 0:00:45]} 30. Kf3 {[%clk 0:00:52]}  Bb7+ {[%clk 0:00:42]} 31. Ke3 {[%clk 0:00:45]}  Rxg3+ {[%clk 0:00:41]} 0-1


[Site "https://www.chess.com"]

[Event "Titled Tuesday Blitz May 9 Early 2023"]
[White "Zaichenko, Daria"]
[Black "Marcziter, Dmitrii"]
[WhiteFideId "4197453"]
[BlackFideId "13900765"]
[WhiteElo "2039"]
[BlackElo "2162"]
[Result "0-1"]
[Round "09"]
[TimeControl "180+2"]
[Date "2023.05.09"]
[WhiteClock "0:00:14"]
[BlackClock "0:00:05"]

1. e4 {[%clk 0:02:55]}  c5 {[%clk 0:02:56]} 2. Nf3 {[%clk 0:02:55]}  a6 {[%clk 0:02:55]} 3. d4 {[%clk 0:02:56]}  cxd4 {[%clk 0:02:55]} 4. Nxd4 {[%clk 0:02:56]}  Nf6 {[%clk 0:02:56]} 5. Nc3 {[%clk 0:02:56]}  d6 {[%clk 0:02:56]} 6. Bd3 {[%clk 0:02:48]}  g6 {[%clk 0:02:51]} 7. O-O {[%clk 0:02:44]}  Bg7 {[%clk 0:02:50]} 8. a4 {[%clk 0:02:44]}  Nc6 {[%clk 0:02:47]} 9. Nb3 {[%clk 0:02:44]}  O-O {[%clk 0:02:43]} 10. h3 {[%clk 0:02:43]}  Be6 {[%clk 0:02:38]} 11. Be3 {[%clk 0:02:43]}  Rc8 {[%clk 0:02:30]} 12. f4 {[%clk 0:02:38]}  Nb4 {[%clk 0:02:25]} 13. Be2 {[%clk 0:02:33]}  Bc4 {[%clk 0:02:18]} 14. a5 {[%clk 0:02:24]}  Bxe2 {[%clk 0:02:15]} 15. Qxe2 {[%clk 0:02:23]}  Nd7 {[%clk 0:02:09]} 16. Bd4 {[%clk 0:02:13]}  e5 {[%clk 0:02:07]} 17. fxe5 {[%clk 0:02:05]}  dxe5 {[%clk 0:02:05]} 18. Be3 {[%clk 0:02:04]}  Qe7 {[%clk 0:02:01]} 19. Rad1 {[%clk 0:02:00]}  Rfd8 {[%clk 0:01:47]} 20. Nd5 {[%clk 0:01:58]}  Nxd5 {[%clk 0:01:46]} 21. exd5 {[%clk 0:01:53]}  f5 {[%clk 0:01:35]} 22. c4 {[%clk 0:01:51]}  Nf6 {[%clk 0:01:28]} 23. d6 {[%clk 0:01:42]}  Rxd6 {[%clk 0:01:13]} 24. Bc5 {[%clk 0:01:41]}  Rxc5 {[%clk 0:01:13]} 25. Nxc5 {[%clk 0:01:40]}  Rxd1 {[%clk 0:01:13]} 26. Rxd1 {[%clk 0:01:32]}  Qxc5+ {[%clk 0:01:13]} 27. Kh2 {[%clk 0:01:33]}  Qxa5 {[%clk 0:01:13]} 28. Qd3 {[%clk 0:01:23]}  Bf8 {[%clk 0:00:54]} 29. Qb3 {[%clk 0:01:20]}  Qc7 {[%clk 0:00:47]} 30. g3 {[%clk 0:01:04]}  Bc5 {[%clk 0:00:42]} 31. Qa4 {[%clk 0:00:49]}  f4 {[%clk 0:00:37]} 32. gxf4 {[%clk 0:00:46]}  exf4 {[%clk 0:00:37]} 33. Qc2 {[%clk 0:00:46]}  f3+ {[%clk 0:00:34]} 34. Kh1 {[%clk 0:00:45]}  Qg3 {[%clk 0:00:31]} 35. Qh2 {[%clk 0:00:45]}  Qxh2+ {[%clk 0:00:21]} 36. Kxh2 {[%clk 0:00:45]}  Ne4 {[%clk 0:00:21]} 37. Rd3 {[%clk 0:00:24]}  f2 {[%clk 0:00:18]} 38. Kg2 {[%clk 0:00:24]}  Kg7 {[%clk 0:00:15]} 39. b4 {[%clk 0:00:23]}  Bxb4 {[%clk 0:00:12]} 40. Re3 {[%clk 0:00:23]}  Nf6 {[%clk 0:00:06]} 41. Re5 {[%clk 0:00:19]}  Be1 {[%clk 0:00:03]} 42. Re7+ {[%clk 0:00:19]}  Kh6 {[%clk 0:00:03]} 43. Rxb7 {[%clk 0:00:19]}  Ne4 {[%clk 0:00:04]} 44. Rf7 {[%clk 0:00:17]}  Nd2 {[%clk 0:00:04]} 45. c5 {[%clk 0:00:17]}  f1=Q+ {[%clk 0:00:03]} 46. Rxf1 {[%clk 0:00:16]}  Nxf1 {[%clk 0:00:03]} 47. Kxf1 {[%clk 0:00:16]}  Bg3 {[%clk 0:00:04]} 48. Kg2 {[%clk 0:00:16]}  Bc7 {[%clk 0:00:05]} 49. Kf3 {[%clk 0:00:14]}  Kg5 {[%clk 0:00:05]} 0-1


[Site "https://www.chess.com"]